[Event "Open Nuevo Centro. Jornada 2"]
[Site "Chess.com"]
[Date "2020.06.26"]
[Round "7"]
[White "Perrot, Fabien "]
[Black "Rodriguez Rodriguez, Joan David "]
[Result "0-1"]
[WhiteElo "1000"]
[BlackElo "1598"]
[TimeControl "180+2"]
[EndTime "11:48:07 PDT"]
[Termination "Victoria de Not_Jr_chess por abandono"]

1. d4 {[%clk 0:03:01.9]} 1... d5 {[%clk 0:03:00.2]} 2. Nf3 {[%clk 0:03:01.8]}
2... Nf6 {[%clk 0:02:57.4]} 3. c4 {[%clk 0:03:00.3]} 3... Bg4 {[%clk 0:02:51]}
4. Bg5 {[%clk 0:02:58.1]} 4... e6 {[%clk 0:02:41]} 5. e3 {[%clk 0:02:59.3]} 5...
Be7 {[%clk 0:02:41]} 6. Nc3 {[%clk 0:02:59.9]} 6... h6 {[%clk 0:02:41.6]} 7. Bh4
{[%clk 0:02:59.6]} 7... O-O {[%clk 0:02:36.2]} 8. h3 {[%clk 0:02:59.5]} 8... Bf5
{[%clk 0:02:35.2]} 9. Ne5 {[%clk 0:02:47.8]} 9... Nbd7 {[%clk 0:02:23.8]} 10.
Qb3 {[%clk 0:02:47.6]} 10... dxc4 {[%clk 0:01:50.2]} 11. Bxc4 {[%clk 0:02:37.6]}
11... Ne4 {[%clk 0:01:46.9]} 12. Nxe4 {[%clk 0:02:34.3]} 12... Bxe4 {[%clk
0:01:45.9]} 13. f3 {[%clk 0:02:35.4]} 13... Bxh4+ {[%clk 0:01:45.5]} 14. Ke2
{[%clk 0:02:17]} 14... Nxe5 {[%clk 0:01:45.9]} 15. fxe4 {[%clk 0:02:13.9]} 15...
Nxc4 {[%clk 0:01:42.4]} 16. Qxc4 {[%clk 0:02:15.8]} 16... c6 {[%clk 0:01:41.8]}
17. Rac1 {[%clk 0:02:16]} 17... Qa5 {[%clk 0:01:38.9]} 18. a3 {[%clk 0:02:15.4]}
18... Rac8 {[%clk 0:01:35.5]} 19. Rhg1 {[%clk 0:02:16.4]} 19... Qa6 {[%clk
0:01:35.9]} 20. g3 {[%clk 0:02:14.6]} 20... Qxc4+ {[%clk 0:01:33.7]} 21. Rxc4
{[%clk 0:02:16.5]} 21... Be7 {[%clk 0:01:31.7]} 22. Rgc1 {[%clk 0:02:12]} 22...
Rfd8 {[%clk 0:01:28.3]} 23. Kf3 {[%clk 0:02:08.4]} 23... g5 {[%clk 0:01:23]} 24.
b4 {[%clk 0:01:49]} 24... a6 {[%clk 0:01:18]} 25. Ra1 {[%clk 0:01:44.7]} 25...
e5 {[%clk 0:01:06.4]} 26. Rac1 {[%clk 0:01:23.9]} 26... exd4 {[%clk 0:01:05.2]}
27. exd4 {[%clk 0:01:23.2]} 27... Bf8 {[%clk 0:00:58.9]} 28. d5 {[%clk
0:01:23.2]} 28... Rc7 {[%clk 0:00:37.1]} 29. Kg4 {[%clk 0:01:12]} 29... Bd6
{[%clk 0:00:34]} 30. h4 {[%clk 0:01:02.5]} 30... gxh4 {[%clk 0:00:32.9]} 31.
gxh4 {[%clk 0:01:02]} 31... Rdd7 {[%clk 0:00:31]} 32. Kf5 {[%clk 0:00:59.1]}
32... cxd5 {[%clk 0:00:31.5]} 33. exd5 {[%clk 0:00:46.2]} 33... Rxc4 {[%clk
0:00:31.7]} 34. Rxc4 {[%clk 0:00:47.6]} 34... Rc7 {[%clk 0:00:21.8]} 35. Re4
{[%clk 0:00:46.2]} 35... Re7 {[%clk 0:00:21.4]} 36. Rc4 {[%clk 0:00:45.4]} 36...
Re5+ {[%clk 0:00:21.8]} 37. Kf6 {[%clk 0:00:26.6]} 37... Rxd5 {[%clk 0:00:18.9]}
38. Rg4+ {[%clk 0:00:26.2]} 38... Kh7 {[%clk 0:00:19.5]} 39. Rg7+ {[%clk
0:00:25.9]} 39... Kh8 {[%clk 0:00:20.4]} 40. Kxf7 {[%clk 0:00:18]} 40... Rf5+
{[%clk 0:00:20.8]} 41. Kg6 {[%clk 0:00:15.8]} 41... Rf1 {[%clk 0:00:19.5]} 42.
Kxh6 {[%clk 0:00:12.5]} 42... Bf4+ {[%clk 0:00:18.7]} 43. Kg6 {[%clk 0:00:12.4]}
43... Rg1+ {[%clk 0:00:19.5]} 44. Kf5 {[%clk 0:00:08.4]} 44... Rxg7 {[%clk
0:00:21.4]} 45. Kxf4 {[%clk 0:00:09.6]} 45... Kh7 {[%clk 0:00:20.8]} 46. a4
{[%clk 0:00:05]} 46... Kh6 {[%clk 0:00:21.5]} 47. b5 {[%clk 0:00:03.5]} 47...
axb5 {[%clk 0:00:23.4]} 48. axb5 {[%clk 0:00:04.7]} 48... Rc7 {[%clk 0:00:22.8]}
49. Ke5 {[%clk 0:00:03.3]} 49... Rc5+ {[%clk 0:00:23.6]} 50. Kd6 {[%clk
0:00:04.1]} 50... Rxb5 {[%clk 0:00:25.5]} 0

[Event "Open Nuevo Centro. Jornada 2"]
[Site "Chess.com"]
[Date "2020.06.26"]
[Round "7"]
[White "Valverde Caballero, Rafael"]
[Black "Marín Corresa, Arturo"]
[Result "1/2-1/2"]
[WhiteElo "1913"]
[BlackElo "2190"]
[TimeControl "180+2"]
[EndTime "11:48:25 PDT"]
[Termination "Partida en tablas por mutuo acuerdo"]

1. c4 {[%clk 0:03:01.9]} 1... e5 {[%clk 0:02:59.9]} 2. Nc3 {[%clk 0:03:02.3]}
2... Nf6 {[%clk 0:02:58.4]} 3. Nf3 {[%clk 0:03:03.2]} 3... Nc6 {[%clk
0:02:58.2]} 4. e4 {[%clk 0:03:04.5]} 4... Bc5 {[%clk 0:02:55.9]} 5. Nxe5 {[%clk
0:03:04.8]} 5... Nxe5 {[%clk 0:02:55.5]} 6. d4 {[%clk 0:03:06]} 6... Bb4 {[%clk
0:02:57.4]} 7. dxe5 {[%clk 0:03:06]} 7... Nxe4 {[%clk 0:02:58.5]} 8. Qf3 {[%clk
0:02:44.7]} 8... Nxc3 {[%clk 0:02:55]} 9. bxc3 {[%clk 0:02:45.5]} 9... Be7
{[%clk 0:02:54.2]} 10. Bd3 {[%clk 0:02:42.5]} 10... d6 {[%clk 0:02:47.2]} 11.
Bf4 {[%clk 0:02:31.5]} 11... O-O {[%clk 0:02:44.8]} 12. O-O {[%clk 0:02:08]}
12... Be6 {[%clk 0:02:20.4]} 13. Rad1 {[%clk 0:01:56.7]} 13... Qc8 {[%clk
0:02:19]} 14. Qg3 {[%clk 0:01:49.3]} 14... Rd8 {[%clk 0:01:58.7]} 15. Bh6 {[%clk
0:01:06.9]} 15... g6 {[%clk 0:01:58.6]} 16. Bg5 {[%clk 0:01:07.5]} 16... Bxg5
{[%clk 0:01:55.2]} 17. Qxg5 {[%clk 0:01:07.7]} 17... dxe5 {[%clk 0:01:49.9]} 18.
Qxe5 {[%clk 0:01:04.8]} 18... Rxd3 {[%clk 0:01:38.4]} 19. Rxd3 {[%clk
0:01:03.6]} 19... Bxc4 {[%clk 0:01:39]} 20. Rfd1 {[%clk 0:00:17.7]} 20... Bxd3
{[%clk 0:01:39.1]} 21. Rxd3 {[%clk 0:00:19.6]} 21... Qe8 {[%clk 0:01:34.1]} 22.
Qxe8+ {[%clk 0:00:20.3]} 22... Rxe8 {[%clk 0:01:34.1]} 23. Kf1 {[%clk
0:00:22.2]} 23... Re6 {[%clk 0:01:34.7]} 24. Rd7 {[%clk 0:00:22.8]} 24... Rc6
{[%clk 0:01:34.7]} 25. Rd3 {[%clk 0:00:23.6]} 25... b5 {[%clk 0:01:32.9]} 26.
Ke2 {[%clk 0:00:24.4]} 26... Kg7 {[%clk 0:01:32.9]} 27. Kd2 {[%clk 0:00:25]}
27... Rc4 {[%clk 0:01:31.7]} 28. Rd5 {[%clk 0:00:25]} 28... a6 {[%clk
0:01:30.8]} 29. g3 {[%clk 0:00:20.1]} 29... Ra4 {[%clk 0:01:31.1]} 30. Rc5
{[%clk 0:00:19.1]} 30... Rxa2+ {[%clk 0:01:31.3]} 31. Ke3 {[%clk 0:00:20.5]}
31... Rc2 {[%clk 0:01:29.5]} 32. Rxc7 {[%clk 0:00:21.1]} 32... b4 {[%clk
0:01:30.2]} 33. c4 {[%clk 0:00:21.2]} 33... b3 {[%clk 0:01:30.6]} 34. Kd3 {[%clk
0:00:22.3]} 34... Rxf2 {[%clk 0:01:30.9]} 35. Ra7 {[%clk 0:00:22.2]} 35... b2
{[%clk 0:01:28.8]} 36. Rb7 {[%clk 0:00:22.9]} 36... a5 {[%clk 0:01:29.3]} 37.
Kc3 {[%clk 0:00:22.1]} 37... a4 {[%clk 0:01:19.1]} 38. Rxb2 {[%clk 0:00:22.1]}
38... Rf3+ {[%clk 0:01:16.9]} 39. Kd4 {[%clk 0:00:22.1]} 39... Rf6 {[%clk
0:01:10.8]} 40. Ra2 {[%clk 0:00:22.8]} 40... Ra6 {[%clk 0:01:11.1]} 41. c5
{[%clk 0:00:23.2]} 41... Kf6 {[%clk 0:01:11.5]} 42. Kd5 {[%clk 0:00:24.7]} 42...
Ke7 {[%clk 0:01:12.2]} 43. Kc4 {[%clk 0:00:25.7]} 43... Kd7 {[%clk 0:01:09.9]}
44. Kb5 {[%clk 0:00:27.6]} 44... Ra8 {[%clk 0:01:10.6]} 45. Rd2+ {[%clk
0:00:28.2]} 45... Kc7 {[%clk 0:01:11.2]} 46. Rf2 {[%clk 0:00:28.1]} 46... f5
{[%clk 0:01:11.1]} 47. Re2 {[%clk 0:00:20.8]} 47... Rb8+ {[%clk 0:00:53.6]} 48.
Kxa4 {[%clk 0:00:20.6]} 48... Kc6 {[%clk 0:00:54.6]} 49. Re7 {[%clk 0:00:20.4]}
49... Rb7 {[%clk 0:00:55]} 50. Rxb7 {[%clk 0:00:19.4]} 50... Kxb7 {[%clk
0:00:55.5]} 51. Kb5 {[%clk 0:00:20.8]} 51... g5 {[%clk 0:00:55.7]} 52. c6+
{[%clk 0:00:20.5]} 52... Kc7 {[%clk 0:00:56.2]} 53. Kc5 {[%clk 0:00:21.6]} 53...
h5 {[%clk 0:00:55.6]} 54. Kd5 {[%clk 0:00:22.6]} 54... h4 {[%clk 0:00:45.1]} 55.
gxh4 {[%clk 0:00:23]} 55... gxh4 {[%clk 0:00:44.6]} 56. Ke5 {[%clk 0:00:23.2]}
56... Kxc6 {[%clk 0:00:44]} 57. Kxf5 {[%clk 0:00:24.1]} 57... Kd6 {[%clk
0:00:44.5]} 58. Kg4 {[%clk 0:00:24.9]} 58... Ke6 {[%clk 0:00:45.2]} 59. Kxh4
{[%clk 0:00:26.3]} 59... Kf6 {[%clk 0:00:47.1]} 60. Kh5 {[%clk 0:00:27.5]} 60...
Kg7 {[%clk 0:00:47.9]} 61. Kg5 {[%clk 0:00:27.5]} 61... Kh7 {[%clk 0:00:49.8]}
62. h4 {[%clk 0:00:26.5]} 62... Kg7 {[%clk 0:00:51.7]} 63. h5 {[%clk 0:00:26]}
63... Kh7 {[%clk 0:00:53.6]} 1/2-1

[Event "Open Nuevo Centro. Jornada 2"]
[Site "Chess.com"]
[Date "2020.06.26"]
[Round "7"]
[White "Castellano López, Javier"]
[Black "Saiz Sapena, Veronica"]
[Result "1-0"]
[WhiteElo "1803"]
[BlackElo "1548"]
[TimeControl "180+2"]
[EndTime "11:48:42 PDT"]
[Termination "Victoria de its_xavi_official por jaque mate"]

1. d4 {[%clk 0:03:01.9]} 1... d5 {[%clk 0:02:59.6]} 2. c4 {[%clk 0:03:02.5]}
2... c6 {[%clk 0:02:59.7]} 3. Nc3 {[%clk 0:03:02.6]} 3... Nf6 {[%clk 0:02:59.3]}
4. Bf4 {[%clk 0:02:56.7]} 4... a6 {[%clk 0:02:57.9]} 5. e3 {[%clk 0:02:52]} 5...
e6 {[%clk 0:02:52.6]} 6. Nf3 {[%clk 0:02:49.3]} 6... Bd6 {[%clk 0:02:50.4]} 7.
Bg3 {[%clk 0:02:39.6]} 7... b5 {[%clk 0:02:43.6]} 8. b3 {[%clk 0:02:27.1]} 8...
Bb4 {[%clk 0:02:37.8]} 9. Rc1 {[%clk 0:02:16.5]} 9... Ne4 {[%clk 0:02:36.1]} 10.
Qd3 {[%clk 0:02:11.1]} 10... Nxc3 {[%clk 0:02:33.8]} 11. Rxc3 {[%clk 0:02:13]}
11... Bxc3+ {[%clk 0:02:34]} 12. Qxc3 {[%clk 0:02:14.9]} 12... O-O {[%clk
0:02:26.2]} 13. Bd3 {[%clk 0:02:15.5]} 13... Nd7 {[%clk 0:02:11.9]} 14. O-O
{[%clk 0:02:13.5]} 14... Bb7 {[%clk 0:02:00.1]} 15. Bb1 {[%clk 0:02:13.1]} 15...
c5 {[%clk 0:01:54]} 16. Bd6 {[%clk 0:02:09.1]} 16... Re8 {[%clk 0:01:52.2]} 17.
dxc5 {[%clk 0:02:03.1]} 17... bxc4 {[%clk 0:01:48.1]} 18. bxc4 {[%clk 0:02:01]}
18... Rc8 {[%clk 0:01:47.9]} 19. cxd5 {[%clk 0:01:59.5]} 19... exd5 {[%clk
0:01:45.5]} 20. Rc1 {[%clk 0:01:57]} 20... Re6 {[%clk 0:01:38.3]} 21. Qd3 {[%clk
0:01:56.7]} 21... g6 {[%clk 0:01:29.8]} 22. Nd4 {[%clk 0:01:55.7]} 22... Rxd6
{[%clk 0:01:26.4]} 23. Qa3 {[%clk 0:01:27.3]} 23... Rf6 {[%clk 0:01:03.4]} 24.
Bd3 {[%clk 0:01:13.3]} 24... Qc7 {[%clk 0:00:55.2]} 25. Nb3 {[%clk 0:01:01.6]}
25... Ne5 {[%clk 0:00:48.5]} 26. Be2 {[%clk 0:00:57.4]} 26... Rc6 {[%clk
0:00:47.6]} 27. f4 {[%clk 0:00:48.5]} 27... Nc4 {[%clk 0:00:47.6]} 28. Bxc4
{[%clk 0:00:42.5]} 28... dxc4 {[%clk 0:00:47.2]} 29. Rxc4 {[%clk 0:00:44.4]}
29... Qd7 {[%clk 0:00:43.3]} 30. Nd4 {[%clk 0:00:42.2]} 30... R6c7 {[%clk
0:00:38]} 31. Qc3 {[%clk 0:00:37.4]} 31... Qg4 {[%clk 0:00:37.3]} 32. c6 {[%clk
0:00:32.8]} 32... Ba8 {[%clk 0:00:28.2]} 33. h3 {[%clk 0:00:25.7]} 33... Qd1+
{[%clk 0:00:28.4]} 34. Kh2 {[%clk 0:00:26.8]} 34... h5 {[%clk 0:00:26.5]} 35. f5
{[%clk 0:00:15.4]} 35... Qf1 {[%clk 0:00:25.9]} 36. fxg6 {[%clk 0:00:15.2]}
36... fxg6 {[%clk 0:00:22.8]} 37. Ne6 {[%clk 0:00:16.3]} 37... Rf7 {[%clk
0:00:20.9]} 38. Ng5 {[%clk 0:00:09.2]} 38... Rg7 {[%clk 0:00:18.9]} 39. Ne6
{[%clk 0:00:07.8]} 39... Rf7 {[%clk 0:00:19.4]} 40. Ng5 {[%clk 0:00:08.8]} 40...
Kf8 {[%clk 0:00:20.2]} 41. Qh8+ {[%clk 0:00:08.5]} 41... Ke7 {[%clk 0:00:20.5]}
42. Qxc8 {[%clk 0:00:07.4]} 42... Rf5 {[%clk 0:00:19.6]} 43. Qd7+ {[%clk
0:00:08.2]} 43... Kf6 {[%clk 0:00:19.2]} 44. Ne4+ {[%clk 0:00:06.6]} 44... Ke5
{[%clk 0:00:17.8]} 45. Qd4+ {[%clk 0:00:06.9]} 45... Ke6 {[%clk 0:00:17.9]} 46.
Nc5+ {[%clk 0:00:07.3]} 46... Kf7 {[%clk 0:00:18]} 47. Qd7+ {[%clk 0:00:07.9]}
47... Kg8 {[%clk 0:00:18.1]} 48. Qe8+ {[%clk 0:00:06.6]} 48... Kh7 {[%clk
0:00:20]} 49. Qe4 {[%clk 0:00:06.7]} 49... Qf2 {[%clk 0:00:18.6]} 50. Ne6 {[%clk
0:00:06.7]} 50... Rf6 {[%clk 0:00:18]} 51. Ng5+ {[%clk 0:00:06.9]} 51... Kh6
{[%clk 0:00:18]} 52. Nf3 {[%clk 0:00:08.1]} 52... Qh4 {[%clk 0:00:17.2]} 53.
Qxh4 {[%clk 0:00:08.4]} 53... Rf5 {[%clk 0:00:15.3]} 54. c7 {[%clk 0:00:08.6]}
54... Bxf3 {[%clk 0:00:14.4]} 55. gxf3 {[%clk 0:00:10.5]} 55... Rxf3 {[%clk
0:00:15.1]} 56. Qf4+ {[%clk 0:00:11.1]} 56... Rxf4 {[%clk 0:00:13.1]} 57. Rxf4
{[%clk 0:00:13]} 57... h4 {[%clk 0:00:13.3]} 58. c8=Q {[%clk 0:00:14.3]} 58...
g5 {[%clk 0:00:14.3]} 59. Qh8+ {[%clk 0:00:15.2]} 59... Kg6 {[%clk 0:00:13.8]}
60. Rf6# {[%clk 0:00:17.1]} 1

[Event "Open Nuevo Centro. Jornada 2"]
[Site "Chess.com"]
[Date "2020.06.26"]
[Round "7"]
[White "Deusa Ballesteros, Lucas "]
[Black "Roca Cruz, Rafael"]
[Result "1-0"]
[WhiteElo "1477"]
[BlackElo "1706"]
[TimeControl "180+2"]
[EndTime "11:48:54 PDT"]
[Termination "Victoria de facundillo2009 por tiempo"]

1. e4 {[%clk 0:03:01.9]} 1... c5 {[%clk 0:03:00.3]} 2. Nf3 {[%clk 0:03:02.4]}
2... e6 {[%clk 0:03:01.4]} 3. d4 {[%clk 0:03:03.2]} 3... cxd4 {[%clk 0:03:01.8]}
4. Nxd4 {[%clk 0:03:05.1]} 4... Nf6 {[%clk 0:03:02.4]} 5. Nc3 {[%clk 0:03:05.9]}
5... Bb4 {[%clk 0:03:03.3]} 6. Bd3 {[%clk 0:03:05.5]} 6... Nc6 {[%clk
0:03:03.9]} 7. Bd2 {[%clk 0:03:04.4]} 7... Nxd4 {[%clk 0:03:03.8]} 8. e5 {[%clk
0:02:59.4]} 8... Nd5 {[%clk 0:02:56]} 9. Qg4 {[%clk 0:02:58.2]} 9... Nf5 {[%clk
0:02:07.5]} 10. Bxf5 {[%clk 0:02:34.2]} 10... exf5 {[%clk 0:02:08.2]} 11. Qxg7
{[%clk 0:02:31.6]} 11... Rf8 {[%clk 0:01:27.9]} 12. Nxd5 {[%clk 0:02:11.8]}
12... Bxd2+ {[%clk 0:01:27.4]} 13. Kxd2 {[%clk 0:02:11.9]} 13... Qa5+ {[%clk
0:01:07.2]} 14. Nc3 {[%clk 0:02:11.3]} 14... b6 {[%clk 0:00:47]} 15. Qxh7 {[%clk
0:02:00.2]} 15... Qc5 {[%clk 0:00:44.5]} 16. Rhf1 {[%clk 0:01:35.4]} 16... Ba6
{[%clk 0:00:44.4]} 17. Qxf5 {[%clk 0:01:28.2]} 17... Bxf1 {[%clk 0:00:41.1]} 18.
Rxf1 {[%clk 0:01:28.2]} 18... O-O-O {[%clk 0:00:33.5]} 19. Qe4 {[%clk
0:01:21.5]} 19... Qc6 {[%clk 0:00:32]} 20. Qxc6+ {[%clk 0:01:05.8]} 20... dxc6+
{[%clk 0:00:33]} 21. Kc1 {[%clk 0:01:07.1]} 21... Rfe8 {[%clk 0:00:30.8]} 22. f4
{[%clk 0:01:07.7]} 22... b5 {[%clk 0:00:29.2]} 23. Ne4 {[%clk 0:01:06.8]} 23...
Re6 {[%clk 0:00:26.4]} 24. h4 {[%clk 0:00:50.4]} 24... Rg8 {[%clk 0:00:24.9]}
25. Rg1 {[%clk 0:00:35.3]} 25... Kc7 {[%clk 0:00:23.9]} 26. h5 {[%clk
0:00:20.2]} 26... Rh6 {[%clk 0:00:21.6]} 27. g4 {[%clk 0:00:17.5]} 27... Rg7
{[%clk 0:00:13.6]} 28. Nf6 {[%clk 0:00:16.6]} 28... Kb6 {[%clk 0:00:12.4]} 29.
g5 {[%clk 0:00:16.7]} 29... Rh8 {[%clk 0:00:12.1]} 30. h6 {[%clk 0:00:16.2]}
30... Rg6 {[%clk 0:00:12.6]} 31. h7 {[%clk 0:00:14.4]} 31... c5 {[%clk
0:00:11.4]} 32. Rd1 {[%clk 0:00:13.1]} 32... Rg7 {[%clk 0:00:10.7]} 33. Rd6+
{[%clk 0:00:10.4]} 33... Kc7 {[%clk 0:00:10]} 34. Rd7+ {[%clk 0:00:11]} 34...
Kc6 {[%clk 0:00:10.9]} 35. Rd1 {[%clk 0:00:08.8]} 35... c4 {[%clk 0:00:11.3]}
36. Rh1 {[%clk 0:00:08.9]} 36... Rg6 {[%clk 0:00:09.7]} 37. c3 {[%clk
0:00:07.3]} 37... a5 {[%clk 0:00:10.6]} 38. Rd1 {[%clk 0:00:06.8]} 38... b4
{[%clk 0:00:11.2]} 39. Rd4 {[%clk 0:00:07.2]} 39... Kc5 {[%clk 0:00:10.1]} 40.
Rd5+ {[%clk 0:00:06.8]} 40... Kc6 {[%clk 0:00:10]} 41. Rxa5 {[%clk 0:00:06.3]}
41... bxc3 {[%clk 0:00:11.1]} 42. bxc3 {[%clk 0:00:06.6]} 42... Rb8 {[%clk
0:00:08.4]} 43. Ra6+ {[%clk 0:00:05.4]} 43... Kc5 {[%clk 0:00:09.3]} 44. Rd6
{[%clk 0:00:05.9]} 44... Rh8 {[%clk 0:00:08.3]} 45. Rd1 {[%clk 0:00:06.4]} 45...
Kb5 {[%clk 0:00:09.1]} 46. Rd7 {[%clk 0:00:06.8]} 46... Kc5 {[%clk 0:00:07.5]}
47. Rxf7 {[%clk 0:00:07.4]} 47... Kb5 {[%clk 0:00:07.6]} 48. Rb7+ {[%clk
0:00:07.4]} 48... Kc6 {[%clk 0:00:08.5]} 49. Re7 {[%clk 0:00:07.9]} 49... Kb6
{[%clk 0:00:07.4]} 50. e6 {[%clk 0:00:08.3]} 50... Kc6 {[%clk 0:00:07.7]} 51.
Rd7 {[%clk 0:00:08.2]} 51... Kb6 {[%clk 0:00:06.6]} 52. e7 {[%clk 0:00:08.1]}
52... Kc6 {[%clk 0:00:07.6]} 53. Rd8 {[%clk 0:00:06.9]} 53... Rxf6 {[%clk
0:00:02.7]} 54. Rxh8 {[%clk 0:00:06.3]} 1

[Event "Open Nuevo Centro. Jornada 2"]
[Site "Chess.com"]
[Date "2020.06.26"]
[Round "7"]
[White "URSARIU, NIKOLAS VICTOR"]
[Black "Torres Biosca, Roberto"]
[Result "1-0"]
[WhiteElo "868"]
[BlackElo "662"]
[TimeControl "180+2"]
[EndTime "11:49:11 PDT"]
[Termination "Victoria de NikolasVictor por jaque mate"]

1. e4 {[%clk 0:03:01.9]} 1... e5 {[%clk 0:02:52.4]} 2. Bc4 {[%clk 0:03:01.6]}
2... Bc5 {[%clk 0:02:53.8]} 3. Qh5 {[%clk 0:03:00.2]} 3... Nh6 {[%clk
0:02:53.2]} 4. Qxe5+ {[%clk 0:02:56.3]} 4... Be7 {[%clk 0:02:48.3]} 5. d3 {[%clk
0:02:49.4]} 5... O-O {[%clk 0:02:44.2]} 6. Bxh6 {[%clk 0:02:46.1]} 6... Bf6
{[%clk 0:02:43.5]} 7. Qg3 {[%clk 0:02:32.4]} 7... Qe7 {[%clk 0:02:21]} 8. Nc3
{[%clk 0:02:25.6]} 8... Be5 {[%clk 0:02:14.8]} 9. f4 {[%clk 0:02:14.1]} 9...
Bxc3+ {[%clk 0:02:09.3]} 10. bxc3 {[%clk 0:02:12.9]} 10... Qf6 {[%clk
0:02:06.2]} 11. Bg5 {[%clk 0:02:08.9]} 11... Qg6 {[%clk 0:02:04.2]} 12. f5
{[%clk 0:02:07.8]} 12... Qh5 {[%clk 0:02:01.3]} 13. Bf6 {[%clk 0:02:00.9]} 13...
Qh6 {[%clk 0:01:45.2]} 14. Bg5 {[%clk 0:01:57.3]} 14... Qh5 {[%clk 0:01:44.3]}
15. d4 {[%clk 0:01:54.4]} 15... h6 {[%clk 0:01:38.1]} 16. Be2 {[%clk 0:01:52.5]}
16... Qxg5 {[%clk 0:01:35]} 17. Qxg5 {[%clk 0:01:51.8]} 17... hxg5 {[%clk
0:01:36.1]} 18. Nf3 {[%clk 0:01:50.7]} 18... g4 {[%clk 0:01:35.1]} 19. Nd2
{[%clk 0:01:50.7]} 19... g6 {[%clk 0:01:27.2]} 20. O-O {[%clk 0:01:40.3]} 20...
gxf5 {[%clk 0:01:23.2]} 21. exf5 {[%clk 0:01:37.9]} 21... d6 {[%clk 0:01:21.3]}
22. Bxg4 {[%clk 0:01:36.4]} 22... Nc6 {[%clk 0:01:18.4]} 23. d5 {[%clk
0:01:34.6]} 23... Ne5 {[%clk 0:01:18]} 24. Be2 {[%clk 0:01:30.9]} 24... f6
{[%clk 0:01:14.2]} 25. Nc4 {[%clk 0:01:20.2]} 25... Nd7 {[%clk 0:01:11.8]} 26.
Rf4 {[%clk 0:01:17.3]} 26... b5 {[%clk 0:01:08]} 27. Rg4+ {[%clk 0:01:16.3]}
27... Kh8 {[%clk 0:01:07.3]} 28. Rh4+ {[%clk 0:01:16.4]} 28... Kg8 {[%clk
0:01:07.9]} 29. Ne3 {[%clk 0:01:13.5]} 29... Ne5 {[%clk 0:01:04.1]} 30. Ng4
{[%clk 0:01:11.8]} 30... Nxg4 {[%clk 0:01:02.8]} 31. Bxg4 {[%clk 0:01:01.4]}
31... Rb8 {[%clk 0:00:53.5]} 32. Bh3 {[%clk 0:00:54.4]} 32... Bd7 {[%clk
0:00:40.2]} 33. Rg4+ {[%clk 0:00:51.5]} 33... Kh8 {[%clk 0:00:38.7]} 34. Re4
{[%clk 0:00:45.9]} 34... c6 {[%clk 0:00:28.3]} 35. Re7 {[%clk 0:00:41.5]} 35...
Rbd8 {[%clk 0:00:25.1]} 36. dxc6 {[%clk 0:00:39.1]} 36... Bxc6 {[%clk
0:00:24.3]} 37. Rxa7 {[%clk 0:00:39.3]} 37... Rde8 {[%clk 0:00:20.7]} 38. Rc7
{[%clk 0:00:34.6]} 38... Ba8 {[%clk 0:00:18.5]} 39. Rd7 {[%clk 0:00:28.4]} 39...
Rg8 {[%clk 0:00:15.9]} 40. Rxd6 {[%clk 0:00:25.2]} 40... Re7 {[%clk 0:00:15.6]}
41. Rxf6 {[%clk 0:00:22.5]} 41... Reg7 {[%clk 0:00:15.7]} 42. g3 {[%clk
0:00:21.3]} 42... Bd5 {[%clk 0:00:10.6]} 43. Bg2 {[%clk 0:00:21]} 43... Bc6
{[%clk 0:00:11.3]} 44. Bxc6 {[%clk 0:00:19.7]} 44... Rf8 {[%clk 0:00:11.9]} 45.
Rh6+ {[%clk 0:00:20.2]} 45... Rh7 {[%clk 0:00:12.9]} 46. Rxh7+ {[%clk
0:00:19.8]} 46... Kxh7 {[%clk 0:00:13.1]} 47. Bd5 {[%clk 0:00:19.8]} 47... Rh8
{[%clk 0:00:14.3]} 48. c4 {[%clk 0:00:20.4]} 48... Kh6 {[%clk 0:00:15.6]} 49.
cxb5 {[%clk 0:00:20.8]} 49... Kh5 {[%clk 0:00:16.8]} 50. b6 {[%clk 0:00:22.2]}
50... Kh6 {[%clk 0:00:17.7]} 51. b7 {[%clk 0:00:23.1]} 51... Kh5 {[%clk
0:00:19]} 52. f6 {[%clk 0:00:24.1]} 52... Kh6 {[%clk 0:00:19.3]} 53. f7 {[%clk
0:00:25.4]} 53... Kh7 {[%clk 0:00:20.1]} 54. a4 {[%clk 0:00:27.3]} 54... Kh6
{[%clk 0:00:20.9]} 55. a5 {[%clk 0:00:28.9]} 55... Kh7 {[%clk 0:00:22.6]} 56. a6
{[%clk 0:00:30.4]} 56... Kh6 {[%clk 0:00:23.9]} 57. a7 {[%clk 0:00:31.9]} 57...
Kh7 {[%clk 0:00:25.5]} 58. a8=Q {[%clk 0:00:32.9]} 58... Kh6 {[%clk 0:00:27.2]}
59. Qxh8+ {[%clk 0:00:32.6]} 59... Kg5 {[%clk 0:00:27.3]} 60. Ra5 {[%clk
0:00:30.6]} 60... Kg4 {[%clk 0:00:25.7]} 61. Bb3 {[%clk 0:00:28.1]} 61... Kf3
{[%clk 0:00:20.2]} 62. Qc3+ {[%clk 0:00:29]} 62... Kg4 {[%clk 0:00:20.7]} 63.
Ra4+ {[%clk 0:00:28.6]} 63... Kh5 {[%clk 0:00:21.5]} 64. Qc5+ {[%clk 0:00:26.5]}
64... Kh6 {[%clk 0:00:21.7]} 65. f8=Q+ {[%clk 0:00:26]} 65... Kg6 {[%clk
0:00:21.2]} 66. Qcf5# {[%clk 0:00:27.3]} 1